fUSD/lending_fUSD_20240726
["ID","MTS","AMOUNT","RATE_DAILY","PERIOD"]
[333290719,1722031831533,-2057.4,0.000107,2]
[333290720,1722031831542,-300.0,0.00010726,2]
[333290721,1722031831552,-109.44863827,0.00010726,2]
[333290722,1722031831564,-190.55136173,0.00010726,2]
[333290723,1722031831574,-301.21643971,0.0001073,2]
[333290724,1722031831583,-65.30984103,0.0001078,2]
[333290725,1722031831650,-121.76770897,0.0001078,2]
[333290726,1722031831662,-169.8136908,0.0001078,2]
[333290727,1722031831672,-300.0,0.00010786,2]
[333290728,1722031831683,-374.21,0.000108,2]
[333290729,1722031831694,-90.20860023,0.00010838,2]
[333290730,1722031831777,-209.79139977,0.00010838,2]
[333290731,1722031831787,-300.0,0.00010845,2]
[333290732,1722031831797,-300.0,0.00010859,2]
[333290733,1722031831807,-300.0,0.00010859,2]
[333290734,1722031831818,-105.28450617,0.00010876,2]
[333290735,1722031831995,-194.71549383,0.00010876,2]
[333290736,1722031832004,-460.43450617,0.000109,2]
[333290737,1722031832015,-539.55549383,0.000109,2]
[333290738,1722031832025,-2500.0,0.000109,2]
[333290739,1722031832034,-1480.21209364,0.000109,3]
[333290740,1722031832047,-492.17028727,0.000109,3]
[333290741,1722031832058,-648.12882621,0.000109,3]
[333290742,1722031832068,-5897.97876645,0.000109,3]
[333290743,1722031832079,-11481.51002643,0.000109,3]
[333290744,1722031832088,-2389.9806,0.000109,2]
[333290745,1722031832098,-207.92410251,0.000109,2]
[333290746,1722031832107,-162.30891768,0.000109,2]
[333290747,1722031832118,-15784.92823097,0.000109,2]
[333290748,1722031832127,-220.97,0.00010904,3]
[333290749,1722031832136,-300.0,0.00010947,2]
[333290750,1722031832338,-300.0,0.00010962,2]
[333290751,1722031832347,-338.6539203,0.00010995,2]
[333290752,1722031832357,-341.173969,0.00010995,2]
[333290753,1722031832366,-300.0,0.00010996,2]
[333290754,1722031832375,-634.78,0.00010997,2]
[333290755,1722031832385,-500.0,0.00010997,2]
[333290756,1722031832395,-342.79095665,0.00010997,2]
[333290757,1722031832406,-500.0,0.00010997,2]
[333290758,1722031832416,-410.35797203,0.00010997,2]
[333290759,1722031832426,-742.36440838,0.00010999,3]
[333290760,1722031832436,-210.50481927,0.00010999,2]
[333290761,1722031832446,-5944.2585102,0.00010999,2]
[333290762,1722031832455,-500.0,0.00010999,2]
[333290763,1722031832465,-523.35577206,0.00010999,2]
[333290764,1722031832474,-222.48426884,0.00010999,2]
[333290765,1722031832484,-447.87222446,0.00010999,2]
[333290766,1722031832493,-500.0,0.00010999,2]
[333290767,1722031832503,-345.43024449,0.00010999,2]
[333290768,1722031832513,-500.0,0.00010999,2]
[333290769,1722031832523,-503.68898625,0.00010999,2]
[333290770,1722031832533,-500.0,0.00010999,2]
[333290771,1722031832543,-506.10987464,0.00010999,2]
[333290772,1722031832553,-503.03504218,0.00010999,2]
[333290773,1722031832563,-508.15229231,0.00010999,2]
[333290774,1722031832574,-150.0,0.00010999,2]
[333290775,1722031832584,-208643.35639455,0.00011,2]
[333290776,1722031832596,-13219.55914838,0.00011,2]
[333290786,1722031837476,-298.52622468,0.000109,2]
[333290787,1722031837486,-619.72066431,0.00010999,2]
[333290788,1722031837497,-10822.61009273,0.00010999,2]
[333290789,1722031837508,-7039.8984313,0.00010999,2]
[333290790,1722031837621,-632.32091126,0.00010999,2]
[333290791,1722031837633,-712.43225591,0.00010999,2]
[333290792,1722031837645,-30173.01764449,0.00010999,2]
[333290793,1722031837654,-11394.91039792,0.00011,2]
[333290794,1722031837675,-650.74634714,0.00011,2]
[333290795,1722031837687,-1605.98,0.00011,2]
[333290796,1722031837698,-2713.35802244,0.00011,2]
[333290797,1722031837714,-229267.67852446,0.00011,2]
[333290798,1722031837758,-709.08266212,0.00011,2]
[333290799,1722031837769,-655.32,0.00011,2]
[333290811,1722031839517,-1311.31,0.00011,2]
[333290812,1722031839530,-360.59086447,0.00011,2]
[333290813,1722031839551,-8377.97250013,0.00011,2]
[333290814,1722031839949,-462.7030002,0.00011,2]
[333290815,1722031839961,-656.66,0.00011,2]
[333290926,1722031842794,-436.78998372,0.00011,2]
[333290927,1722031842806,-1416.83983997,0.00011,2]
[333290928,1722031842915,-1217.50675063,0.00011,2]
[333290929,1722031842927,-2147.6502305,0.00011,2]
[333290930,1722031842937,-7167.83919564,0.00011,2]
[333290931,1722031842949,-1419711.5393821,0.00011,2]
[333290932,1722031843073,-5207.64034554,0.00011,2]
[333290933,1722031843084,-32621.08850002,0.00011,2]
[333290934,1722031843096,-1433.76304378,0.00011,2]
[333290977,1722031845497,-302.0,0.00011,2]
[333291008,1722031845733,-1639.925665,0.00011,2]
[333291009,1722031845745,-1467.26925349,0.00011,2]
[333291010,1722031845783,-3285.27612,0.00011,2]
[333291011,1722031845795,-1014.8698506,0.00011,2]
[333291012,1722031845829,-888.15322301,0.00011,2]
[333291013,1722031845841,-2999.1831936,0.00011,2]
[333291014,1722031845889,-1578.49314389,0.00011,2]
[333291036,1722032807939,2541.91521873,0.00015,30]
[333291065,1722033031825,-340.51,8.219e-05,2]
[333291066,1722033031835,-300.0,9.799e-05,2]
[333291067,1722033031844,-300.0,9.799e-05,2]
[333291068,1722033031853,-859.49,9.8e-05,2]
[333291069,1722033031865,-6585.54410001,9.8e-05,2]
[333291070,1722033031876,-2863.16179999,9.8e-05,2]
[333291071,1722033031886,-543.28820001,9.803e-05,2]
[333291077,1722033037706,-456.71179999,9.803e-05,2]
[333291078,1722033037715,-300.0,9.9e-05,3]
[333291079,1722033037725,-1250.0,0.0001,2]
[333291080,1722033037735,-600.0,0.0001,3]
[333291081,1722033037745,-204.18166783,0.0001,2]
[333291082,1722033037755,-6797.38,0.00010005,2]
[333291083,1722033037765,-900.0,0.000101,3]
[333291084,1722033037774,-1200.0,0.000102,3]
[333291085,1722033037783,-4256.06,0.000102,2]
[333291086,1722033037793,-1500.0,0.000103,3]
[333291087,1722033037802,-300.0,0.000104,3]
[333291088,1722033037811,-340.51,0.00010463,2]
[333291089,1722033037821,-300.0,0.000105,3]
[333291090,1722033037830,-300.0,0.000106,3]
[333291091,1722033037839,-193.22919597,0.00010664,2]
[333291092,1722033037848,-304.80832522,0.0001069,2]
[333291093,1722033037857,-300.0,0.00010691,2]
[333291094,1722033037867,-300.0,0.000107,3]
[333291095,1722033037876,-300.0,0.00010706,2]
[333291096,1722033037886,-128.27298363,0.00010779,2]
[333291097,1722033037898,-291.72701637,0.00010779,2]
[333291098,1722033037908,-420.0,0.00010779,2]
[333291099,1722033037918,-1061.55291279,0.0001078,2]
[333291100,1722033037927,-1031.83249967,0.0001078,2]
[333291101,1722033037937,-600.0,0.000108,3]
[333291102,1722033037947,-992.03761605,0.00010899,2]
[333291103,1722033037957,-414.5634,0.000109,2]
[333291104,1722033037967,-5018.9755,0.000109,2]
[333291105,1722033037976,-20159.5556,0.000109,2]
[333291106,1722033037986,-5232.4873,0.000109,2]
[333291107,1722033037995,-1592.9037,0.000109,2]
[333291108,1722033038005,-1869.2975,0.000109,2]
[333291109,1722033038014,-162.30891768,0.000109,2]
[333291110,1722033038023,-1250.0,0.000109,2]
[333291111,1722033038033,-1250.0,0.000109,2]
[333291112,1722033038043,-1396.5104799,0.000109,2]
[333291113,1722033038052,-220.15,0.00010904,2]
[333291114,1722033038062,-6342.12,0.0001091,2]
[333291115,1722033038071,-1074.0,0.0001091,2]
[333291116,1722033038080,-250.00000099,0.0001099,2]
[333291117,1722033038089,-16843.34582597,0.00010995,2]
[333291119,1722033038100,-678.46643896,0.00010995,2]
[333291121,1722033038112,-680.9102,0.00010995,2]
[333291122,1722033038145,-2006.3696,0.00010995,2]
[333291123,1722033038156,-17550.4999998,0.00010995,2]
[333291124,1722033038211,-4152.83856847,0.00010995,2]
[333291125,1722033038220,-5135.85203153,0.00010995,2]
[333291126,1722033038231,-1015.57365664,0.00010995,2]
[333291127,1722033038242,-9324.97,0.00010995,2]
[333291133,1722033039674,-2010.0,0.00010995,2]
[333291134,1722033039687,-7688.62948463,0.00010995,2]
[333291135,1722033039697,-2183.77051537,0.00010997,2]
[333291136,1722033039708,-2454.94273917,0.00010997,2]
[333291137,1722033039720,-1352.74328221,0.00010997,2]
[333291138,1722033039733,-1180.22303273,0.00010997,2]
[333291139,1722033039746,-933.52628441,0.00010997,2]
[333291140,1722033039765,-426.803,0.00010997,2]
[333291141,1722033039786,-466.51281727,0.00010997,2]
[333291142,1722033039798,-1594.4435325,0.00010997,2]
[333291143,1722033039880,-2607.56487855,0.00010997,2]
[333291144,1722033039890,-256.0068596,0.00010999,2]
[333291145,1722033039899,-5211.86165841,0.00010999,2]
[333291146,1722033039909,-65199.26532199,0.00011,2]
[333291147,1722033039922,-9351.02752417,0.00011,2]
[333291148,1722033039934,-820.025,0.00011,2]
[333291149,1722033039949,-24854.21966704,0.00011,2]
[333291150,1722033039976,-40598.05593484,0.00011,2]
[333291166,1722033043071,-460.35272284,0.00011,2]
[333291167,1722033043187,-1919.52883686,0.00011,2]
[333291182,1722033045776,-107013.36915977,0.00011,2]
[333291184,1722033045786,-14300.39715777,0.00011,2]
[333291192,1722033879168,-315.87,8.219e-05,2]
[333291193,1722033903664,1308.80374551,8.219e-05,2]
[333291194,1722033913791,3955.32625449,8.219e-05,2]
[333291213,1722034231923,-300.0,8.218e-05,2]
[333291214,1722034231933,-6284.54279997,8.219e-05,2]
[333291233,1722034237963,-1150.70425807,8.219e-05,2]
[333291234,1722034237975,-1232.90285437,8.219e-05,2]
[333291235,1722034237987,-500.0,8.219e-05,2]
[333291236,1722034238040,-11604.06294502,8.219e-05,2]
[333291237,1722034238052,-542.99403541,8.219e-05,2]
[333291238,1722034238365,-427.20419193,8.219e-05,2]
[333291239,1722034238377,-18706.61516302,8.219e-05,2]
[333291240,1722034238389,-32892.8635019,8.219e-05,2]
[333291245,1722034239918,-644.08472678,8.219e-05,2]
[333291246,1722034239930,-497.06571082,8.219e-05,2]
[333291247,1722034239939,-688.24776845,8.219e-05,2]
[333291248,1722034239951,-534.05764887,8.219e-05,2]
[333291249,1722034239960,-5568.10615433,8.219e-05,2]
[333291250,1722034239983,-2134.4505794,8.219e-05,2]
[333291251,1722034239993,-797.48730297,8.219e-05,2]
[333291252,1722034240002,-1845.11295477,8.219e-05,2]
[333291253,1722034240012,-1861.84846382,8.219e-05,2]
[333291254,1722034240114,-1354.64900194,8.219e-05,2]
[333291255,1722034240124,-510.26880987,8.219e-05,2]
[333291256,1722034240136,-328.89999999,8.219e-05,2]
[333291257,1722034240148,-530.56994947,8.219e-05,2]
[333291258,1722034240158,-110.14611143,8.219e-05,2]
[333291259,1722034240170,-1198.65763408,8.219e-05,2]
[333291260,1722034240179,-300.07,8.219e-05,2]
[333291261,1722034240190,-520.0,8.531e-05,10]
[333291262,1722034240199,-420.0,9.04e-05,2]
[333291263,1722034240209,-250.0,9.824e-05,2]
[333291264,1722034240219,-150.0,9.888e-05,2]
[333291265,1722034240228,-400.0,9.9e-05,3]
[333291266,1722034240238,-587.0,9.944e-05,2]
[333291267,1722034240247,-1250.0,0.0001,2]
[333291268,1722034240257,-900.0,0.0001,3]
[333291269,1722034240267,-1000.0,0.00010005,2]
[333291270,1722034240276,-1233.89,0.00010005,2]
[333291271,1722034240286,-22204.02,0.00010005,2]
[333291272,1722034240295,-1300.0,0.000101,3]
[333291273,1722034240305,-1800.0,0.000102,3]
[333291274,1722034240315,-2200.0,0.000103,3]
[333291275,1722034240324,-400.0,0.000104,3]
[333291276,1722034240333,-300.07,0.00010467,2]
[333291278,1722034240343,-400.0,0.000105,3]
[333291280,1722034240352,-11495.0,0.000105,5]
[333291282,1722034240362,-400.0,0.000106,3]
[333291284,1722034240371,-400.0,0.000107,3]
[333291286,1722034240380,-150.0,0.00010727,2]
[333291288,1722034240390,-150.0,0.00010727,2]
[333291290,1722034240399,-150.0,0.0001073,2]
[333291292,1722034240408,-150.0,0.00010733,2]
[333291294,1722034240418,-150.0,0.00010733,2]
[333291296,1722034240427,-150.0,0.00010734,2]
[333291297,1722034240437,-150.0,0.00010734,2]
[333291299,1722034240446,-150.0,0.00010748,2]
[333291301,1722034240456,-150.0,0.00010753,2]
[333291303,1722034240465,-150.0,0.00010757,2]
[333291305,1722034240475,-150.0,0.00010761,2]
[333291307,1722034240484,-150.0,0.00010762,2]
[333291309,1722034240493,-150.0,0.00010763,2]
[333291311,1722034240503,-150.0,0.00010765,2]
[333291313,1722034240512,-150.0,0.00010768,2]
[333291314,1722034240521,-150.0,0.00010773,2]
[333291316,1722034240533,-1030.55212689,0.0001078,2]
[333291318,1722034240543,-150.0,0.00010783,2]
[333291320,1722034240555,-150.0,0.00010785,2]
[333291322,1722034240565,-150.0,0.00010786,2]
[333291324,1722034240574,-150.0,0.0001079,2]
[333291326,1722034240583,-150.0,0.00010793,2]
[333291328,1722034240593,-150.0,0.00010795,2]
[333291330,1722034240602,-150.0,0.00010796,2]
[333291332,1722034240612,-837.0,0.000108,3]
[333291334,1722034240621,-150.0,0.000108,2]
[333291336,1722034240630,-150.0,0.00010804,2]
[333291338,1722034240639,-150.0,0.00010804,2]
[333291340,1722034240648,-150.0,0.00010806,2]
[333291342,1722034240658,-150.0,0.0001081,2]
[333291344,1722034240667,-150.0,0.00010811,2]
[333291346,1722034240677,-150.0,0.00010813,2]
[333291348,1722034240687,-150.0,0.00010814,2]
[333291350,1722034240696,-150.0,0.00010818,2]
[333291352,1722034240705,-150.0,0.00010822,2]
[333291354,1722034240714,-150.0,0.00010828,2]
[333291356,1722034240724,-150.0,0.00010831,2]
[333291358,1722034240733,-150.0,0.00010832,2]
[333291360,1722034240743,-150.0,0.00010837,2]
[333291362,1722034240753,-150.0,0.00010838,2]
[333291364,1722034240763,-150.0,0.00010838,2]
[333291366,1722034240772,-150.0,0.00010839,2]
[333291368,1722034240784,-150.0,0.00010842,2]
[333291370,1722034240793,-150.0,0.00010844,2]
[333291372,1722034240802,-150.0,0.00010849,2]
[333291374,1722034240813,-150.0,0.00010852,2]
[333291376,1722034240825,-150.0,0.00010853,2]
[333291377,1722034240835,-150.0,0.00010853,2]
[333291379,1722034240845,-150.0,0.00010857,2]
[333291381,1722034240854,-150.0,0.00010862,2]
[333291383,1722034240865,-150.0,0.00010862,2]
[333291385,1722034240875,-150.0,0.00010865,2]
[333291387,1722034240884,-150.0,0.00010872,2]
[333291389,1722034240896,-150.0,0.00010873,2]
[333291391,1722034240905,-150.0,0.00010874,2]
[333291393,1722034240915,-150.0,0.00010883,2]
[333291394,1722034240924,-150.0,0.00010885,2]
[333291396,1722034240934,-39730.0,0.00010888,2]
[333291398,1722034240943,-150.0,0.00010889,2]
[333291400,1722034240953,-150.0,0.00010889,2]
[333291402,1722034240963,-150.0,0.0001089,2]
[333291404,1722034240972,-1000.0,0.00010898,2]
[333291406,1722034240982,-150.0,0.00010899,2]
[333291408,1722034240991,-990.8623,0.000109,2]
[333291410,1722034241000,-372.40279464,0.000109,2]
[333291412,1722034241011,-150.0,0.00010902,2]
[333291413,1722034241020,-150.0,0.00010902,2]
[333291415,1722034241031,-150.0,0.00010904,2]
[333291417,1722034241040,-150.0,0.00010907,2]
[333291419,1722034241049,-381.296,0.0001091,2]
[333291421,1722034241059,-1829.0,0.0001091,2]
[333291423,1722034241069,-1254.0,0.0001091,2]
[333291425,1722034241079,-1580.0,0.0001091,2]
[333291427,1722034241089,-450.0,0.0001091,2]
[333291429,1722034241100,-810.0,0.0001091,2]
[333291430,1722034241109,-180.302,0.0001091,2]
[333291432,1722034241119,-432.0,0.0001091,2]
[333291434,1722034241128,-2383.0,0.0001091,2]
[333291436,1722034241137,-550.0,0.0001091,2]
[333291438,1722034241146,-488.191,0.0001091,2]
[333291440,1722034241155,-150.0,0.00010914,2]
[333291441,1722034241164,-150.0,0.00010917,2]
[333291443,1722034241173,-150.0,0.00010921,2]
[333291445,1722034241183,-150.0,0.00010926,2]
[333291447,1722034241192,-150.0,0.00010931,2]
[333291449,1722034241202,-150.0,0.00010931,2]
[333291451,1722034241211,-150.0,0.00010938,2]
[333291453,1722034241220,-823.0,0.00010938,2]
[333291455,1722034241229,-150.0,0.00010942,2]
[333291457,1722034241239,-150.0,0.00010945,2]
[333291459,1722034241248,-150.0,0.00010946,2]
[333291461,1722034241257,-150.0,0.00010949,2]
[333291463,1722034241266,-150.0,0.00010951,2]
[333291465,1722034241276,-150.0,0.00010955,2]
[333291467,1722034241285,-150.0,0.00010956,2]
[333291469,1722034241295,-150.0,0.00010957,2]
[333291471,1722034241304,-150.0,0.00010958,2]
[333291472,1722034241313,-150.0,0.00010963,2]
[333291474,1722034241322,-150.0,0.00010966,2]
[333291476,1722034241332,-150.0,0.00010967,2]
[333291478,1722034241341,-150.0,0.00010974,2]
[333291480,1722034241350,-150.0,0.00010976,2]
[333291481,1722034241359,-150.0,0.00010976,2]
[333291483,1722034241368,-150.0,0.0001099,2]
[333291485,1722034241378,-150.0,0.00010991,2]
[333291487,1722034241387,-150.0,0.00010994,2]
[333291489,1722034241397,-150.0,0.00010995,2]
[333291491,1722034241406,-23468.4298959,0.00010997,2]
[333291493,1722034241415,-500.0,0.00010997,2]
[333291495,1722034241424,-500.0,0.00010997,2]
[333291497,1722034241433,-500.0,0.00010997,2]
[333291499,1722034241443,-500.0,0.00010997,2]
[333291501,1722034241452,-301.2814,0.00010997,2]
[333291503,1722034241461,-1015564.94453847,0.00010998,2]
[333291505,1722034241470,-21157.7081809,0.00010998,2]
[333291506,1722034241479,-2084.0500674,0.00010998,2]
[333291508,1722034241488,-1345.1996874,0.00010998,2]
[333291510,1722034241498,-500.0,0.00010999,2]
[333291512,1722034241507,-500.0,0.00010999,2]
[333291514,1722034241516,-500.0,0.00010999,2]
[333291516,1722034241526,-500.0,0.00010999,2]
[333291518,1722034241535,-500.0,0.00010999,2]
[333291520,1722034241544,-621.731,0.00010999,2]
[333291522,1722034241553,-503.22852544,0.00010999,2]
[333291524,1722034241562,-500.0,0.00010999,2]
[333291525,1722034241572,-500.0,0.00010999,2]
[333291527,1722034241581,-444.01306764,0.00010999,2]
[333291529,1722034241590,-500.0,0.00010999,2]
[333291531,1722034241599,-500.0,0.00010999,2]
[333291533,1722034241609,-500.0,0.00010999,2]
[333291535,1722034241618,-500.0,0.00010999,2]
[333291537,1722034241627,-320.73,0.00010999,2]
[333291539,1722034241636,-1000.0,0.00011,2]
[333291541,1722034241645,-134865.34749872,0.00011,2]
[333291543,1722034241664,-1729.84999999,0.00011,2]
[333291545,1722034241675,-1124.02077438,0.00011,2]
[333291547,1722034241686,-15257.9360926,0.00011,2]
[333291549,1722034241697,-376.955934,0.00011,2]
[333291661,1722034242914,-150.0,0.00010728,2]
[333291663,1722034242926,-150.0,0.00010733,2]
[333291665,1722034242938,-150.0,0.00010735,2]
[333291667,1722034242950,-150.0,0.00010736,2]
[333291669,1722034242960,-150.0,0.00010746,2]
[333291671,1722034242971,-89.10109103,0.00010749,2]
[333291673,1722034242983,-60.89890897,0.00010749,2]
[333291675,1722034242993,-150.0,0.00010753,2]
[333291677,1722034243003,-150.0,0.00010761,2]
[333291679,1722034243012,-150.0,0.00010764,2]
[333291681,1722034243021,-150.0,0.00010768,2]
[333291683,1722034243031,-150.0,0.00010769,2]
[333291685,1722034243041,-150.0,0.00010769,2]
[333291687,1722034243051,-150.0,0.0001077,2]
[333291689,1722034243060,-150.0,0.00010772,2]
[333291691,1722034243070,-150.0,0.00010772,2]
[333291693,1722034243079,-150.0,0.00010772,2]
[333291695,1722034243089,-150.0,0.00010773,2]
[333291697,1722034243098,-150.0,0.00010788,2]
[333291699,1722034243108,-150.0,0.0001079,2]
[333291701,1722034243118,-150.0,0.0001079,2]
[333291702,1722034243127,-150.0,0.00010793,2]
[333291704,1722034243136,-150.0,0.00010803,2]
[333291706,1722034243146,-150.0,0.00010806,2]
[333291708,1722034243156,-150.0,0.0001081,2]
[333291710,1722034243166,-150.0,0.00010819,2]
[333291712,1722034243176,-150.0,0.00010824,2]
[333291714,1722034243185,-150.0,0.00010829,2]
[333291716,1722034243195,-150.0,0.00010837,2]
[333291718,1722034243204,-110.46404806,0.00010838,2]
[333291720,1722034243222,-150.0,0.0001078,2]
[333291722,1722034243232,-39.53595194,0.00010838,2]
[333291724,1722034243241,-150.0,0.00010847,2]
[333291726,1722034243251,-150.0,0.0001085,2]
[333291728,1722034243260,-150.0,0.00010853,2]
[333291730,1722034243270,-150.0,0.00010856,2]
[333291732,1722034243281,-150.0,0.00010857,2]
[333291734,1722034243290,-150.0,0.00010857,2]
[333291736,1722034243300,-150.0,0.00010858,2]
[333291738,1722034243309,-150.0,0.00010861,2]
[333291740,1722034243319,-150.0,0.00010861,2]
[333291742,1722034243328,-150.0,0.00010864,2]
[333291744,1722034243337,-150.0,0.00010865,2]
[333291746,1722034243347,-150.0,0.00010874,2]
[333291748,1722034243356,-150.0,0.00010875,2]
[333291750,1722034243366,-150.0,0.00010877,2]
[333291752,1722034243375,-150.0,0.00010879,2]
[333291754,1722034243385,-150.0,0.0001088,2]
[333291756,1722034243394,-150.0,0.00010892,2]
[333291758,1722034243403,-150.0,0.00010893,2]
[333291760,1722034243412,-150.0,0.00010893,2]
[333291762,1722034243423,-150.0,0.00010905,2]
[333291764,1722034243434,-150.0,0.0001091,2]
[333291766,1722034243443,-150.0,0.0001091,2]
[333291768,1722034243453,-150.0,0.00010911,2]
[333291770,1722034243462,-150.0,0.00010912,2]
[333291772,1722034243472,-150.0,0.00010914,2]
[333291774,1722034243481,-150.0,0.00010922,2]
[333291776,1722034243491,-150.0,0.00010925,2]
[333291778,1722034243500,-150.0,0.00010937,2]
[333291780,1722034243510,-150.0,0.0001094,2]
[333291782,1722034243519,-150.0,0.00010943,2]
[333291784,1722034243530,-150.0,0.00010948,2]
[333291786,1722034243539,-150.0,0.00010948,2]
[333291788,1722034243549,-150.0,0.00010956,2]
[333291789,1722034243558,-150.0,0.00010957,2]
[333291790,1722034243567,-150.0,0.00010962,2]
[333291791,1722034243576,-150.0,0.00010964,2]
[333291792,1722034243586,-150.0,0.00010966,2]
[333291793,1722034243595,-150.0,0.00010973,2]
[333291794,1722034243604,-78.03775215,0.00010981,2]
[333291795,1722034243616,-71.96224785,0.00010981,2]
[333291796,1722034243797,-150.0,0.00010983,2]
[333291797,1722034243807,-150.0,0.00010984,2]
[333291798,1722034243820,-150.0,0.00010984,2]
[333291799,1722034243832,-150.0,0.00010985,2]
[333291800,1722034243842,-150.0,0.00010988,2]
[333291801,1722034243851,-150.0,0.0001099,2]
[333291802,1722034243860,-150.0,0.00010994,2]
[333291803,1722034243869,-5337.39028396,0.00011,2]
[333291804,1722034243891,-150.0,0.00010872,2]
[333291805,1722034243901,-150.0,0.000109,2]
[333291806,1722034243910,-955.06367634,0.00011,2]
[333291807,1722034243922,-9640.10867753,0.00011,2]
[333291808,1722034243932,-748.63230573,0.00011,2]
[333291810,1722034243943,-6020.50980002,0.00011,2]
[333291814,1722034243978,-150.0,0.00010803,2]
[333291817,1722034243988,-150.0,0.00010856,2]
[333291819,1722034243997,-150.0,0.0001094,2]
[333291820,1722034244006,-1149.08934919,0.00011,2]
[333291823,1722034244017,-873.04153788,0.00011,2]
[333291825,1722034244028,-443.07349567,0.00011,2]
[333291827,1722034244038,-1570.55517767,0.00011,2]
[333291829,1722034244049,-831.48450349,0.00011,2]
[333291832,1722034244071,-150.0,0.00010977,2]
[333291834,1722034244080,-150.0,0.00010991,2]
[333291836,1722034244089,-127.18428536,0.00011,2]
[333291838,1722034244100,-537.88,0.00011,2]
[333291840,1722034244112,-768.44720034,0.00011,2]
[333291842,1722034244123,-3593.78666846,0.00011,2]
[333291844,1722034244133,-931.13278959,0.00011,2]
[333291847,1722034244145,-1314.84081101,0.00011,2]
[333291849,1722034244156,-650.36277005,0.00011,2]
[333291851,1722034244167,-16745.60588507,0.00011,2]
[333291853,1722034244179,-32129.79194209,0.00011,2]
[333291855,1722034244188,-148074.47455085,0.00011,2]
[333291857,1722034244199,-715.36994382,0.00011,2]
[333291860,1722034244220,-150.0,0.00010952,2]
[333291862,1722034244229,-136.93626806,0.00011,2]
[333291873,1722034245952,-150.0,0.00010726,2]
[333291874,1722034245961,-150.0,0.00010726,2]
[333291875,1722034245971,-150.0,0.00010727,2]
[333291876,1722034245983,-150.0,0.00010729,2]
[333291877,1722034245994,-150.0,0.00010736,2]
[333291878,1722034246005,-150.0,0.00010739,2]
[333291879,1722034246015,-150.0,0.00010744,2]
[333291880,1722034246025,-150.0,0.00010745,2]
[333291881,1722034246035,-17.5824999,0.0001075,2]
[333291894,1722034246699,-132.4175001,0.0001075,2]
[333291895,1722034246709,-150.0,0.00010761,2]
[333291896,1722034246718,-150.0,0.00010766,2]
[333291897,1722034246727,-41.21039842,0.00010767,2]
[333291898,1722034246738,-108.78960158,0.00010767,2]
[333291899,1722034246748,-150.0,0.00010769,2]
[333291900,1722034246757,-150.0,0.00010769,2]
[333291901,1722034246766,-49.48689081,0.00010778,2]
[333291903,1722034246777,-100.51310919,0.00010778,2]
[333291904,1722034246786,-150.0,0.00010779,2]
[333291905,1722034246796,-150.0,0.00010779,2]
[333291907,1722034246805,-150.0,0.00010785,2]
[333291908,1722034246816,-150.0,0.00010787,2]
[333291909,1722034246826,-150.0,0.00010796,2]
[333291910,1722034246835,-150.0,0.000108,2]
[333291911,1722034246845,-150.0,0.00010806,2]
[333291912,1722034246854,-150.0,0.0001081,2]
[333291913,1722034246865,-150.0,0.00010821,2]
[333291914,1722034246875,-150.0,0.00010823,2]
[333291915,1722034246884,-150.0,0.00010827,2]
[333291916,1722034246893,-150.0,0.00010829,2]
[333291917,1722034246905,-150.0,0.00010833,2]